Cogmind - Beta 9.4 @@@ ROGUE MODE // 2020.01.12 @ 11:58:44 Player: Horse Result: Destroyed by Y-45 Defender with Beam Rifle Performance ------------- Evolutions (0) 0 Regions Visited (2) 400 Robots Destroyed (45) 225 Value Destroyed (797) 797 Prototype IDs (0) 0 Alien Tech Used (0) 0 Bonus (4) 4 TOTAL SCORE: 1426 Bonus ------- High Alert Combat Kills 4 Cogmind --------- Core Integrity 0/250 Matter 58/300 Energy 250/250 System Corruption 0% Temperature Cool (9) Movement Walking (150) Ox1 Location -10/Mines Parts ------- > --- POWER (1) -------- Ion Engine > --- PROPULSION (2) --- Aluminum Leg > --- UTILITY (2) ------ Small Storage Unit Small Storage Unit > --- WEAPON (2) ------- Grenade Launcher > --- INVENTORY (8) ---- Ion Engine Improved Heat Sink Recalibrator Medium Laser Medium Laser Medium Laser Medium Laser Grenade Launcher Peak State ------------ > --- POWER ------------ Ion Engine > --- PROPULSION ------- Aluminum Leg Aluminum Leg > --- UTILITY ---------- Small Storage Unit Small Storage Unit > --- WEAPON ----------- Assault Rifle Grenade Launcher > --- INVENTORY -------- Recalibrator Medium Laser Medium Laser Medium Laser Medium Laser Medium Laser Grenade Launcher [Rating: 8] Favorites ----------- Power Light Ion Engine Engine Light Ion Engine Propulsion Aluminum Leg Leg Aluminum Leg Utility Small Storage Unit Storage Small Storage Unit Weapon Assault Rifle Energy Gun Medium Laser Ballistic Gun Assault Rifle Launcher Grenade Launcher Build | -11 -10 -10 ------- Run | Scr Mat Min Slots Evolved . | . . . Power . | . . . Propulsion . | . . . Utility . | . . . Weapon . | . . . Parts Attached 18 | 7 7 4 Power 4 | 1 2 1 Engine 4 | 1 2 1 Core . | . . . Reactor . | . . . Propulsion 8 | 2 4 2 Treads . | . . . Leg 8 | 2 4 2 Wheel . | . . . Hover . | . . . Flight . | . . . Utility 2 | 2 . . Device . | . . . Storage 2 | 2 . . Processor . | . . . Hackware . | . . . Protection . | . . . Artifact . | . . . Weapon 4 | 2 1 1 Energy Gun 1 | . . 1 Energy Cannon . | . . . Ballistic Gun 2 | 2 . . Ballistic Cannon . | . . . Launcher 1 | . 1 . Special Weapon . | . . . Impact Weapon . | . . . Slashing Weapon . | . . . Piercing Weapon . | . . . Special Melee Weapon . | . . . Unidentified Prototypes . | . . . Parts Lost 6 | . 2 4 Power 2 | . 1 1 Propulsion 1 | . . 1 Utility . | . . . Weapon 3 | . 1 2 Highest Loss Streak 2 | . 1 2 Average Slot Usage (%) 97 | . 96 98 Engine 13 | . 13 13 Leg 27 | . 28 27 Storage 28 | . 28 28 Energy Gun 3 | . . 7 Ballistic Gun 14 | . 19 6 Launcher 9 | . 5 14 Naked Turns . | . . . Heaviest Build 18 | 15 18 18 Greatest Support 20 | 20 20 20 Greatest Overweight (x) 1 | 1 . 1 Average Overweight (x) . | . . . Largest Inventory Capacity 8 | 8 8 8 Average Capacity 7 | 5 8 8 Most Carried 8 | . 8 8 Average Carried 7 | . 7 7 Final Capacity 8 | 8 8 8 Final Carried 8 | . 8 8 Class Distribution -------------------- 75% | Scavenger-Mutant 24% | Mutant Dominant Class ---------------- Scavenger-Mutant | -10/Materials Scavenger-Mutant | -10/Mines Resources | -11 -10 -10 ----------- Run | Scr Mat Min Matter Collected 749 | 254 372 123 Remotely . | . . . Salvage Created 900 | 69 660 171 Parts 81 | 3 46 32 Haulers Intercepted 2 | . 2 . Recyclers Shooed 3 | . 3 . Parts Field Recycled . | . . . Retrieved Matter . | . . . Parts Self-Destructed . | . . . Prevented . | . . . Kills | -11 -10 -10 ------- Run | Scr Mat Min Combat Hostiles Destroyed 36 | . 19 17 Guns 16 | . 14 2 AOE 20 | . 5 15 Classes Destroyed 8 | 1 6 1 Worker 3 | . 2 1 Tunneler 1 | . . 1 Hauler 2 | . 2 . Recycler 1 | 1 . . Mechanic 1 | . 1 . Watcher 1 | . 1 . Swarmer 23 | . 8 15 Grunt 13 | . 11 2 Best Kill Streak 7 | 1 6 7 Combat Bots Only 4 | . 4 3 Max Kills in Single Turn 3 | 1 2 3 Gunslinging 1 | . 1 . Exploded 3 | . 2 3 Melee . | . . . Uniques/NPCs Destroyed . | . . . Combat | -11 -10 -10 -------- Run | Scr Mat Min Damage Taken 1027 | . 666 361 Core 263 | . 165 98 Absorbed by Shields . | . . . Core Remaining (%) 100 | 100 . . Volleys Fired 87 | 1 68 18 Largest 2 | 2 2 2 Hottest 80 | 40 50 80 Shots Fired 145 | 2 116 27 Gun 112 | 2 101 9 Cannon . | . . . Launcher 33 | . 15 18 Special . | . . . Kinetic 105 | 2 101 2 Thermal 7 | . . 7 Explosive 33 | . 15 18 Electromagnetic . | . . . Robot Hit Streak 11 | . 11 5 Robot Miss Streak 4 | 2 4 2 Penetration Max . | . . . Secondary Targets 4 | . 4 . Max Gunslinging Chain 1 | . 1 . Shots Hit Robots 81 | . 72 9 Core Hits 62 | 2 39 21 Critical Hits 1 | . 1 . Critical Kills . | . . . Critical Parts Destroyed 1 | . 1 . Melee Attacks . | . . . Impact . | . . . Slashing . | . . . Piercing . | . . . Sneak Attacks . | . . . Combat Hostiles . | . . . Follow-up Attacks . | . . . Damage Inflicted 2490 | 24 1461 1005 Guns 919 | 24 869 26 Cannons . | . . . Explosions 1569 | . 590 979 Melee . | . . . Ramming 2 | . 2 . Kinetic 893 | 24 869 . Thermal 26 | . . 26 Explosive 1569 | . 590 979 Electromagnetic . | . . . Impact . | . . . Slashing . | . . . Piercing . | . . . Highest Corruption . | . . . Average Corruption . | . . . Corruption Purged . | . . . Overload Shots . | . . . Overflow Damage 57 | . 14 43 Projectiles . | . . . Explosions 57 | . 14 43 Melee . | . . . Knockbacks . | . . . Impact . | . . . Kinetic . | . . . Secondary . | . . . Self-Inflicted Damage 185 | . 30 155 Shots 8 | . 2 6 Rammed 1 | . 1 . Targets Rammed 1 | . 1 . Kicked . | . . . Crushed . | . . . Highest Temperature 54 | . 5 54 Average Temperature 16 | . 4 19 Received Heat Transfer 300 | . 276 24 Siege Activations . | . . . Robots Corrupted . | . . . Combat Hostiles . | . . . Parts Fried . | . . . Impact Corruptions . | . . . Robots Melted . | . . . Combat Hostiles . | . . . Parts Melted . | . . . Heat Transferred 74 | . . 74 Parts Sabotaged . | . . . Parts Stolen . | . . . Parts Stripped . | . . . Power Chain Reactions . | . . . Missiles Intercepted . | . . . Alert | -11 -10 -10 ------- Run | Scr Mat Min Peak Influence 425 | 5 387 425 Average Influence 163 | 1 153 193 Maximum Alert Level 2 | . 1 2 Low Security (%) 63 | 100 62 61 Level 1 34 | . 37 32 Level 2 2 | . . 5 Level 3 . | . . . Level 4 . | . . . Level 5 . | . . . High Security . | . . . Max Security . | . . . Squads Dispatched 6 | . 6 . Investigation 5 | . 5 . Extermination . | . . . Reinforcement 1 | . 1 . Assault . | . . . Garrison . | . . . Intercept . | . . . Construction Impeded . | . . . Haulers Reinforced . | . . . Stealth | -11 -10 -10 --------- Run | Scr Mat Min Distress Signals . | . . . Communications Jammed . | . . . Distress Signals . | . . . Times Spotted 41 | . 26 15 Peak Tracking Total 6 | . 6 3 Tactical Retreats . | . . . Traps | -11 -10 -10 ------- Run | Scr Mat Min Traps Triggered 1 | . 1 . Indirectly . | . . . Trap Hack Attempts . | . . . Triggered . | . . . Disarmed . | . . . Reprogrammed . | . . . Reused . | . . . Traps Extracted . | . . . Installed . | . . . Triggered . | . . . Machines | -11 -10 -10 ---------- Run | Scr Mat Min Machines Disabled 5 | . 1 4 Max in Single Turn 2 | . 1 2 Machines Sabotaged . | . . . Garrisons Compromised . | . . . Overloaded Fab Kills . | . . . Fab Network Shutdowns . | . . . Hacking | -11 -10 -10 --------- Run | Scr Mat Min Machines Accessed 4 | . 4 . Terminals 3 | . 3 . Fabricators . | . . . Repair Stations . | . . . Recycling Units 1 | . 1 . Scanalyzers . | . . . Garrison Access . | . . . Total Hacks 20 | . 20 . Successful 7 | . 7 . Failed 13 | . 13 . Catastrophic 2 | . 2 . Database Lockouts . | . . . Manual 9 | . 9 . Terminals 17 | . 17 . Fabricators . | . . . Repair Stations . | . . . Recycling Units 3 | . 3 . Scanalyzers . | . . . Garrison Access . | . . . Terminal Hacks 6 | . 6 . Robot Schematic 1 | . 1 . Robot Analysis 2 | . 2 . Unreport Threat 2 | . 2 . Recall Investigation 1 | . 1 . Fabricator Hacks . | . . . Repair Station Hacks . | . . . Recycling Unit Hacks . | . . . Scanalyzer . | . . . Garrison Access Hacks . | . . . Unauthorized Hacks 2 | . 2 . Terminals 1 | . 1 . Botnet 1 | . 1 . Fabricators . | . . . Repair Stations . | . . . Recycling Units . | . . . Scanalyzers . | . . . Garrison Access . | . . . Data Cores Recovered . | . . . Used . | . . . Hacking Detections 4 | . 4 . Full Trace Events 4 | . 4 . Feedback Events . | . . . Feedback Blocked . | . . . Robot Schematics Acquired 1 | . 1 . Robots Built . | . . . Matter . | . . . Time . | . . . Total Robot Build Rating . | . . . Part Schematics Acquired . | . . . Parts Built . | . . . Matter . | . . . Time . | . . . Total Part Build Rating . | . . . Parts Repaired . | . . . Time . | . . . Parts Recycled . | . . . Recycled Matter . | . . . Retrieved Matter . | . . . Retrieved Components . | . . . Parts Scanalyzed . | . . . Part Schematics Acquired . | . . . Parts Damaged . | . . . Bothacking | -11 -10 -10 ------------ Run | Scr Mat Min Used RIF Installer . | . . . Robots Hacked . | . . . Non-combat . | . . . Combat . | . . . Robot Hacks Applied . | . . . Relay Couplers Released . | . . . Robots Rewired . | . . . Allies Hacked . | . . . Hacks Repelled . | . . . Allies | -11 -10 -10 -------- Run | Scr Mat Min Total Allies . | . . . Largest Group . | . . . Highest-Rated Group . | . . . Highest-Rated Ally . | . . . Total Orders . | . . . Ally Attacks . | . . . Total Damage . | . . . Kills . | . . . Allies Corrupted . | . . . Allies Melted . | . . . Intel | -11 -10 -10 ------- Run | Scr Mat Min Robot Analysis Total 2 | . 2 . Derelict Logs Recovered . | . . . Drone Launches . | . . . Drone Recoveries . | . . . Exploration | -11 -10 -10 ------------- Run | Scr Mat Min Turns Passed 1300 | 51 739 510 Spaces Moved 857 | 36 440 381 Core 11 | 11 . . Treads . | . . . Legs 846 | 25 440 381 Wheels . | . . . Hover . | . . . Flight . | . . . Fastest Speed 50 | 50 120 120 Average Speed 119 | 101 120 120 Slowest Speed 150 | 120 120 150 Overloaded Moves . | . . . Propulsion Burnouts . | . . . Robots Hopped . | . . . Cave-ins Triggered . | . . . Exploration Rate (%) 54 | 4 76 84 Regions Visited 2 Branch Regions 1 Pre-discovered Areas . | . . . Known Exits Taken . | . . . Unknown Exits Taken 2 | 1 1 . Scrap Searched 1 | . . 1 Spaces Dug 5 | . . 5 Terrain Destroyed 211 | . 87 124 Melee . | . . . Projectile . | . . . AOE 211 | . 87 124 Actions | -11 -10 -10 --------- Run | Scr Mat Min Total 987 | 45 536 406 Wait 10 | 2 8 . Move 855 | 35 439 381 Hop . | . . . Pick Up 9 | . 8 1 Fast Attach 10 | 7 2 1 Attach 2 | . 1 1 Detach 1 | . 1 . Swap 6 | . 4 2 Drop 6 | . 4 2 Fire 87 | 1 68 18 Melee . | . . . Ram . | . . . Kick 1 | . 1 . Crush . | . . . Escape Stasis . | . . . Rewire . | . . . Trap . | . . . Miscellaneous . | . . . Route ------- -11/Scrapyard -10/Materials (discovered 3 exits: [*Mat x2] / [*Min]) -10/Mines (discovered 2 exits: [*Mat x2]) History --------- Turn | Location | Event 6 | -11/Scrapyard | Discovered new exit (range 15) 52 | -11/Scrapyard | Entered Materials 194 | -10/Materials | Discovered new exit (range 10) 318 | -10/Materials | Build established: Mutant 396 | -10/Materials | Core integrity fell below 50% 502 | -10/Materials | Discovered new exit (range 11) 619 | -10/Materials | Build established: Scavenger-Mutant 684 | -10/Materials | Discovered new exit (range 12) 791 | -10/Materials | Entered Mines 1156 | -10/Mines | Core integrity fell below 20% 1267 | -10/Mines | Discovered new exit (range 4) 1292 | -10/Mines | Discovered new exit (range 8) 1301 | -10/Mines | Destroyed by Y-45 Defender with Beam Rifle Last Messages --------------- 01131_ S-10 Pest destroyed. 01134_ Laser Drill disabled. 01134_ K-01 Serf collects debris. 01137_ S-10 Pest destroyed. 01138_ K-01 Serf collects debris. 01154_ K-01 Serf destroyed. 01158_ K-01 Serf collects debris. 01159_ S-10 Pest destroyed. 01159_ Destroyed Flight Unit. 01162_ K-01 Serf collects debris. 01164_ S-10 Pest destroyed. 01178_ The unstable cave ceiling collapses. 01235_ K-01 Serf collects debris. 01267_ EXIT=FOUND 01292_ Med. Laser destroyed. 01292_ Destroyed Med. Laser. 01292_ Aluminum Leg destroyed. 01292_ Destroyed Aluminum Leg. 01292_ EXIT=FOUND 01294_ S-10 Pest destroyed. Map ----- +----------------------------------------------------+ | ??# #??????# #??????????###############?? | | ??#########??????# #??????????# #?? | | ?????????????????# ###????????# #?? | | ?????????????????# #####????# """ "" """ #?? | | ?????????????##### ##???# """ "" #?? | | ????????????## #???# """ "" #?? | | ????????????# """ ##??# #?? | | ????????????# """ ##?# [ #?? | | ????????????# """ #?####### [ #?? | | ????????????##### """ #####???# [ #?? | | ????????????????##### # ##### #### | | ????????????????????# ### # ## ## # | | ????????????????????# ### # # # # ## ## * | | ????????????????????# = ##### | | ????????????????????# = * | | ????????????????????## ### # | | ?????????????????????# #?# ## # #### | | ?????????????????????# #?########## # ##### | | ?????????????????????# #??????????# ## #???# | | ??????????#??????????# ###????????# ### ##???? | | ?????????## ????????# #????????# #?####????? | | ?????????# ??????### #????????# #?????????? | | ???????? # % < ??????# #????????# #?????????? | | ??????? / ##### ##???????# #?????????? | | ??????? Y # ###?????# #?????????? | | ?????????# = @ ##????# #?????????? | | ?????????#=%* ##???# #?????????? | | ?????????# ###### #???# #?????????? | | ?????????# ??????# #####???? #?????????? | | ?????????# ?????????# ##???????? ??????????? | | ?????????#???????????## #?????????????????????? | | ?????????????????????# ##?????????????????????? | | ?????????????????????# ##?????????????????????? | | ?????????????????????# ##?###????????????????? | | ?????????????????????# < ## ##?????????????### | | ?????????????????????# #?????????????# | | ?????????????????????## #?????????????# | | ??????????????????????## ##?????????????# | | ???????????????????????########??????????????## | | ??????????????????????????????????????????????## | | ???????????????????????????????????? ??????????# | | ???????????????????????????????????? ??????????? | | ????????????????????????????????????? ?????????? | | ????????????????????????????????????? #????????? | | ?????????????????????????????????????? ##?????## | | ??????????????????????????????????????? ##??# | | ??????????????????????????????????????? ### | | ???????????????????????????????????????? | | ???????????????????#?#?##???????????????# | | ??????????????????## # # #??????????????# | +----------------------------------------------------+ Best States ------------- Heat Dissipation 25 Energy Generation 10 Energy Capacity 250 Matter Stores 300 Matter Capacity 300 Sight Range 16 Terrain Scan Density 10 Evasion (%) 40 Item Schematics ----------------- None Robot Schematics ------------------ M-13 Machinist | -10/Materials | Hacked Fabricated ------------ Nothing Alien Tech Used ----------------- None Achievements -------------- None Challenges ------------ None Game ------ Seed DispersionPrecisionShielding Manual? 0 Play Time 00:09:23 Cumulative 877.8 hours Start 2020.01.12 @ 11:51:46 End 2020.01.12 @ 11:58:44 Sessions 1 Manual Loads 0 Difficulty Rogue Special Mode None Game No. 334 Rogue 334 Adventurer 0 Explorer 0 Win Type - Total 13 Types 12/0/1/0/0/0/0 Lore% 77 Gallery% 87 Achievement% 69 Wizard Run 0 Options --------- ASCII 0 Keyboard 0 Movement Numpad Keybinds 0 Fullscreen 2 Font 18/SmallcapsGlow Map View 112x50 Tactical HUD 1 Map Filters NONE Filters NONE Steam 1 RUN: 199346c8-63b7-43ab-a3ba-470ebbf7ebae